bitfinex-derivatives/quotes_BTCF0:USTF0_20210102
["timestamp","ask_amount","ask_price","bid_price","bid_amount"]
[1609588835785,0.00040982,29758.0,29755.0,0.18043158]
[1609588836389,0.00040982,29758.0,29756.0,0.00038198]
[1609588837192,0.00427615,29765.0,29756.0,0.00038198]
[1609588837591,0.00040973,29764.0,29756.0,0.00038198]
[1609588837791,0.00040973,29764.0,29763.0,0.18043158]
[1609588838191,0.00040973,29764.0,29763.0,0.1808135]
[1609588838391,0.00040973,29765.0,29763.0,0.1808135]
[1609588838691,0.00040973,29764.0,29763.0,0.1808135]
[1609588838892,0.00040973,29764.0,29763.0,0.18043158]
[1609588839192,0.00040973,29765.0,29763.0,0.18081349]
[1609588839495,0.00040973,29764.0,29763.0,0.18081349]
[1609588839692,0.00040973,29764.0,29763.0,0.18043158]
[1609588839893,0.18084131,29764.0,29763.0,0.18043158]
[1609588840093,0.18043158,29764.0,29763.0,0.18081349]
[1609588840293,0.18084131,29764.0,29763.0,0.18081349]
[1609588843897,0.18084131,29764.0,29763.0,0.18043158]
[1609588844097,0.18043158,29764.0,29763.0,0.18081348]
[1609588847001,0.18043158,29764.0,29763.0,0.18043158]
[1609588849805,0.18043158,29764.0,29763.0,0.18081349]
[1609588850014,0.18043158,29764.0,29749.0,2.01627959]
[1609588850405,1.18043158,29764.0,29749.0,2.01627959]
[1609588850605,1.18043158,29764.0,29750.0,0.00038195]
[1609588851306,1.18043158,29764.0,29749.0,0.00038197]
[1609588851906,1.0,29764.0,29759.0,0.18043158]
[1609588852307,1.0,29763.0,29759.0,0.18043158]
[1609588852508,1.0,29763.0,29760.0,0.00038197]
[1609588853909,1.0,29763.0,29762.0,0.18043158]
[1609588854210,1.0,29763.0,29762.0,0.18081351]
[1609588854410,0.297,29765.0,29762.0,0.18081351]
[1609588854810,0.297,29765.0,29763.0,0.00038193]
[1609588855911,0.18043158,29764.0,29763.0,0.00038193]
[1609588860418,0.18043158,29764.0,29763.0,3.95718193]
[1609588864525,0.18084128,29764.0,29763.0,3.95718193]
[1609588868934,0.18084128,29764.0,29763.0,0.00038193]
[1609588869134,1.18084128,29764.0,29763.0,0.00038193]
[1609588869334,4.96274128,29764.0,29763.0,0.00038193]
[1609588869533,4.96274128,29764.0,29755.0,0.00038193]
[1609588869835,0.00040976,29763.0,29755.0,0.00038193]
[1609588870034,0.18043158,29756.0,29755.0,0.00038193]
[1609588870335,0.18084136,29756.0,29755.0,0.00038193]
[1609588871637,0.18084136,29756.0,29755.0,4.65188193]
[1609588874143,0.18084136,29756.0,29755.0,4.83231351]
[1609588874545,0.17879601,29756.0,29755.0,4.83231351]
[1609588878848,0.17838623,29756.0,29755.0,4.83231351]
[1609588886061,0.17838623,29756.0,29755.0,0.18081351]
[1609588887061,0.17634082,29756.0,29755.0,0.00038193]
[1609588888563,0.17634082,29756.0,29755.0,5.06748193]
[1609588890466,0.17634082,29756.0,29755.0,0.00038193]
[1609588892571,0.17634082,29756.0,29755.0,0.58738193]
[1609588894273,0.17634082,29756.0,29755.0,0.76781351]
[1609588897176,0.17429549,29756.0,29755.0,0.76781351]
[1609588900581,0.17429549,29756.0,29755.0,0.75743158]
[1609588902484,0.17429549,29756.0,29755.0,0.74743158]
[1609588902685,0.17429549,29756.0,29755.0,0.78841016]
[1609588904288,0.19359549,29756.0,29755.0,0.78841016]
[1609588909696,0.19155018,29756.0,29755.0,0.78841016]
[1609588912502,0.0193,29756.0,29755.0,0.78841016]
[1609588918311,0.0193,29756.0,29755.0,0.22141016]
[1609588918712,0.19973158,29756.0,29755.0,0.22141016]
[1609588919013,0.20014136,29756.0,29755.0,0.22141016]
[1609588920013,0.20014136,29756.0,29755.0,0.18043158]
[1609588920215,0.19809602,29756.0,29755.0,0.18043158]
[1609588922519,1.85759602,29756.0,29754.0,0.10492]
[1609588922724,1.85759602,29756.0,29749.0,2.02686971]
[1609588922922,0.0004098,29755.0,29749.0,2.02686971]
[1609588923319,0.0004098,29755.0,29750.0,0.04136227]
[1609588923520,0.0004098,29755.0,29750.0,2.0685986]
[1609588923719,0.1003098,29755.0,29751.0,0.00038199]
[1609588923920,1.0,29754.0,29751.0,0.00038199]
[1609588924122,3.9987,29752.0,29751.0,0.00038199]
[1609588924321,6.0985,29752.0,29751.0,0.00038199]
[1609588924522,6.09890984,29752.0,29751.0,0.00038199]
[1609588924724,6.27934142,29752.0,29751.0,0.00038199]
[1609588925422,6.27934142,29752.0,29749.0,0.00038204]
[1609588925624,6.27934142,29752.0,29751.0,0.00038204]
[1609588925823,6.27893158,29752.0,29750.0,0.00038204]
[1609588926123,6.27934145,29752.0,29751.0,0.00038204]
[1609588926322,5.27893158,29752.0,29751.0,0.00038204]
[1609588926723,5.27934145,29752.0,29749.0,0.00038204]
[1609588926923,0.00040987,29751.0,29749.0,0.00038204]
[1609588928325,1.0,29750.0,29749.0,0.00038204]
[1609588928527,2.0,29750.0,29749.0,0.00038204]
[1609588928729,2.00040987,29750.0,29749.0,0.00038204]
[1609588929828,1.00040987,29750.0,29749.0,0.00038204]
[1609588930225,2.00040987,29750.0,29749.0,0.00038204]
[1609588930426,0.00040987,29750.0,29749.0,0.00038204]
[1609588930831,4.17913158,29752.0,29749.0,0.00038204]
[1609588931028,0.00040987,29750.0,29749.0,0.00038204]
[1609588931227,0.00040987,29751.0,29749.0,0.00038204]
[1609588931427,0.00040987,29750.0,29749.0,0.00038204]
[1609588931926,0.00040987,29751.0,29749.0,0.00038204]
[1609588932227,0.00040987,29750.0,29749.0,0.00038204]
[1609588932727,0.00040987,29751.0,29749.0,0.00038204]
[1609588933128,0.00040987,29750.0,29749.0,0.00038204]
[1609588933330,1.18043158,29752.0,29749.0,0.00038204]
[1609588934429,0.18043158,29752.0,29749.0,0.00038204]
[1609588936332,0.0993,29751.0,29749.0,0.00038204]
[1609588936533,0.18043158,29752.0,29749.0,0.00038204]
[1609588937434,0.18043158,29752.0,29750.0,4.7462]
[1609588937833,0.18043158,29752.0,29751.0,0.00038226]
[1609588938733,0.18043158,29752.0,29751.0,0.18081384]
[1609588944340,0.01725466,29756.0,29751.0,0.18081384]
[1609588944638,0.01725466,29756.0,29752.0,0.00038219]
[1609588944840,0.01725466,29756.0,29755.0,0.18043158]
[1609588945238,0.01725466,29756.0,29755.0,0.33380377]
[1609588946742,0.19768624,29756.0,29755.0,0.33380377]
[1609588950547,0.19564097,29756.0,29755.0,0.33380377]
[1609588951949,0.19564097,29756.0,29755.0,1.03520377]
[1609588954553,0.01520939,29756.0,29755.0,1.03520377]
[1609588957455,0.01520939,29756.0,29755.0,2.03520377]
[1609588958657,0.01520939,29756.0,29755.0,1.03520377]
[1609588959058,0.01520939,29756.0,29755.0,1.07617504]
[1609588961061,0.01520939,29756.0,29755.0,1.03520377]
[1609588964264,0.01316439,29756.0,29755.0,1.03520377]
[1609588966365,0.01316439,29756.0,29755.0,1.07617556]
[1609588974378,0.01111941,29756.0,29755.0,1.07617556]
[1609588984790,0.0090746,29756.0,29755.0,1.07617556]
[1609588988294,0.0090746,29756.0,29755.0,1.15811201]
[1609588988895,0.0090746,29756.0,29755.0,2.15811201]
[1609588989095,0.0090746,29756.0,29755.0,2.07617556]
[1609588990600,7.46e-05,29756.0,29755.0,4.10485985]
[1609588990997,7.46e-05,29756.0,29755.0,4.18678494]
[1609588991798,0.00040962,29772.0,29755.0,6.41532686]
[1609588991997,0.11504,29773.0,29755.0,6.41532686]
[1609588992196,0.19508395,29779.0,29755.0,6.41532686]
[1609588992397,0.19508395,29779.0,29756.0,0.12326793]
[1609588992598,0.00040961,29778.0,29756.0,0.12326793]
[1609588992801,0.00040961,29778.0,29757.0,1.0]
[1609588993002,0.12850961,29778.0,29757.0,1.0]
[1609588993200,0.12850961,29778.0,29777.0,0.18043158]
[1609588993399,0.1281,29778.0,29777.0,0.18043158]
[1609588993599,0.12850961,29778.0,29777.0,5.09601363]
[1609588996805,0.1281,29778.0,29777.0,5.09601363]
[1609588998108,0.01464968,29783.0,29777.0,5.09601363]
[1609588998708,0.00040958,29782.0,29778.0,0.00038225]
[1609588999009,0.17131958,29782.0,29778.0,0.00038225]
[1609588999211,0.17131958,29782.0,29781.0,0.18043158]
[1609588999413,0.17131958,29782.0,29781.0,0.97481383]
[1609588999713,0.17131958,29782.0,29781.0,0.97443158]
[1609589000814,0.17091,29782.0,29781.0,0.97443158]
[1609589001015,0.17091,29782.0,29781.0,1.9748138]
[1609589002619,0.17091,29782.0,29781.0,0.9748138]
[1609589003121,0.17091,29782.0,29781.0,1.9748138]
[1609589004121,0.19507672,29785.0,29781.0,1.9748138]
[1609589004421,0.19507672,29785.0,29781.0,1.97443158]
[1609589004621,0.19507672,29785.0,29781.0,0.97443158]
[1609589004821,0.19507672,29785.0,29781.0,1.97443158]
[1609589005022,0.19507672,29785.0,29782.0,0.00038217]
[1609589005221,0.19507672,29785.0,29784.0,0.18043158]
[1609589006923,0.19507672,29785.0,29784.0,5.24223158]
[1609589007122,0.19507672,29785.0,29784.0,6.24223158]
[1609589007422,0.19507672,29785.0,29784.0,5.24223158]
[1609589008423,0.19507672,29785.0,29784.0,5.24261373]
[1609589009828,0.18043158,29785.0,29784.0,5.24261373]
[1609589010232,0.18043158,29785.0,29784.0,5.37516373]
[1609589011030,0.18043158,29785.0,29784.0,6.37516373]
[1609589011330,0.18043158,29785.0,29784.0,6.37478158]
[1609589013032,0.17838801,29785.0,29784.0,6.37478158]
[1609589013231,0.18043158,29792.0,29784.0,6.37478158]
[1609589013434,0.18043158,29792.0,29784.0,1.31336369]
[1609589013632,0.18043158,29792.0,29791.0,4.3429]
[1609589014232,0.18043158,29792.0,29791.0,5.3429]
[1609589015331,0.18043158,29792.0,29791.0,5.52371367]
[1609589015533,0.18043158,29792.0,29791.0,4.52333158]
[1609589016834,0.18043158,29792.0,29791.0,4.52371366]
[1609589017633,0.18043158,29792.0,29791.0,4.52333158]
[1609589017835,0.18043158,29792.0,29791.0,5.52333158]
[1609589018235,0.18043158,29792.0,29791.0,5.52371366]
[1609589018435,0.18043158,29792.0,29791.0,5.52333158]
[1609589019136,0.18043158,29792.0,29791.0,4.52333158]
[1609589019335,0.18043158,29792.0,29791.0,4.52371366]
[1609589019835,0.18084099,29792.0,29791.0,4.52371366]
[1609589023439,0.18043158,29792.0,29791.0,4.52333158]
[1609589026049,0.18043158,29792.0,29791.0,0.18043158]
[1609589026649,0.18084098,29792.0,29791.0,0.18043158]
[1609589026850,1.18084098,29792.0,29790.0,0.11299]
[1609589027048,1.18084098,29792.0,29785.0,4.5235]
[1609589027450,0.00040942,29791.0,29787.0,0.18043158]
[1609589027851,0.00040942,29791.0,29788.0,0.00038209]
[1609589028353,1.00040942,29791.0,29788.0,0.00038209]
[1609589028753,0.00040942,29790.0,29788.0,0.00038209]
[1609589029356,0.18043158,29789.0,29788.0,0.00038209]
[1609589029854,0.180841,29789.0,29788.0,0.00038209]
[1609589030955,1.180841,29789.0,29788.0,0.00038209]
[1609589031858,0.180841,29789.0,29788.0,0.00038209]
[1609589038168,1.180841,29789.0,29788.0,0.00038209]
[1609589038569,0.180841,29789.0,29788.0,0.00038209]
[1609589041976,4.425141,29789.0,29788.0,0.00038209]
[1609589042976,0.180841,29789.0,29788.0,0.00038209]
[1609589043476,1.180841,29789.0,29788.0,0.00038209]
[1609589045779,0.0173,29788.0,29787.0,0.18043158]
[1609589046180,0.01770942,29788.0,29787.0,0.18081368]
[1609589047680,0.01770942,29788.0,29787.0,0.0003821]
[1609589048082,5.00170942,29788.0,29785.0,0.0003821]
[1609589048280,1.0,29787.0,29785.0,0.0003821]
[1609589048481,0.1013,29786.0,29784.0,0.13255]
[1609589048681,1.0,29785.0,29770.0,4.1653]
[1609589048881,1.00040953,29785.0,29770.0,4.1653]
[1609589049282,0.00040955,29784.0,29774.0,0.00038222]
[1609589049682,1.00040955,29784.0,29775.0,0.18043158]
[1609589050281,0.00040945,29783.0,29776.0,0.00038213]
[1609589050481,1.00040945,29783.0,29776.0,0.00038213]
[1609589050882,1.0,29782.0,29776.0,0.00038213]
[1609589051082,1.0004095,29782.0,29776.0,0.00038213]
[1609589051283,0.0004095,29781.0,29776.0,0.00038213]
[1609589051682,0.18043158,29777.0,29776.0,0.00038213]
[1609589053384,0.18043158,29777.0,29776.0,0.00038219]
[1609589053986,0.17838776,29777.0,29776.0,0.00038219]
[1609589061101,4.9336,29784.0,29776.0,0.00038219]
[1609589061697,4.9336,29784.0,29783.0,0.18043158]
[1609589061899,3.9336,29784.0,29783.0,0.18043158]
[1609589062104,3.93400951,29784.0,29783.0,0.18081563]
[1609589062297,3.9336,29784.0,29783.0,0.18081563]
[1609589062701,3.9336,29784.0,29783.0,0.00038405]
[1609589063104,3.9336,29784.0,29775.0,0.00038405]
[1609589063399,3.9336,29784.0,29783.0,0.00038405]
[1609589063601,4.9336,29784.0,29783.0,0.00038405]
[1609589063800,5.11403158,29784.0,29779.0,0.18043158]
[1609589064001,5.11403158,29784.0,29783.0,0.00038405]
[1609589064202,5.11403158,29784.0,29780.0,0.00038405]
[1609589064602,5.11403158,29784.0,29783.0,0.00038405]
[1609589064802,4.11403158,29784.0,29781.0,0.00038405]
[1609589065002,4.11403158,29784.0,29783.0,0.00038405]
[1609589065202,4.11403158,29784.0,29782.0,0.00038405]
[1609589065402,0.18043158,29784.0,29782.0,0.00038405]
[1609589065603,0.18043158,29784.0,29783.0,0.00038405]
[1609589066004,0.18043158,29784.0,29780.0,0.00038405]
[1609589066303,0.18043158,29784.0,29783.0,0.00038405]
[1609589066704,0.18043158,29784.0,29781.0,0.00038405]
[1609589066906,0.18043158,29784.0,29783.0,0.00038405]
[1609589067105,0.18043158,29784.0,29782.0,0.00038405]
[1609589067506,0.18084107,29784.0,29783.0,0.00038405]
[1609589067707,0.18043158,29784.0,29783.0,0.18081563]
[1609589067907,0.18084107,29784.0,29783.0,0.18043158]
[1609589068106,0.18084107,29784.0,29783.0,0.18081561]
[1609589072117,0.18084106,29784.0,29783.0,0.18081561]
[1609589074217,0.73214106,29784.0,29783.0,0.18081561]
[1609589074621,0.73214106,29784.0,29783.0,0.00038403]
[1609589075019,0.73214106,29784.0,29775.0,0.00038403]
[1609589075433,0.00040948,29783.0,29775.0,0.00038403]
[1609589075823,0.00040948,29783.0,29781.0,0.18043158]
[1609589076321,0.00040948,29783.0,29782.0,0.00038403]
[1609589077826,0.18084106,29783.0,29782.0,0.00038403]
[1609589078028,0.18043158,29783.0,29782.0,0.00038403]
[1609589088338,0.18043158,29783.0,29775.0,0.04133231]
[1609589088539,0.18043158,29783.0,29782.0,0.00038407]
[1609589088739,0.18043158,29783.0,29776.0,0.00038407]
[1609589089041,0.00040949,29782.0,29775.0,0.04133231]
[1609589089340,0.00040949,29782.0,29777.0,0.00038407]
[1609589089540,0.00040949,29782.0,29776.0,0.00038407]
[1609589089940,0.00040949,29782.0,29778.0,0.00038407]
[1609589090140,4.5061,29779.0,29777.0,0.00038407]
[1609589090339,4.5061,29779.0,29775.0,0.04094824]
[1609589090539,5.5061,29779.0,29775.0,0.04094824]
[1609589090740,0.00040949,29778.0,29775.0,0.00038409]
[1609589090941,5.5061,29779.0,29776.0,0.00038409]
[1609589091341,6.5061,29779.0,29776.0,0.00038409]
[1609589091542,6.5061,29779.0,29775.0,0.00038415]
[1609589091741,6.5061,29779.0,29777.0,0.00038415]
[1609589091941,0.18043158,29778.0,29777.0,0.00038415]
[1609589092141,0.18043158,29778.0,29776.0,0.00038415]
[1609589092342,0.18043158,29778.0,29777.0,0.00038415]
[1609589092542,1.18043158,29778.0,29777.0,0.00038415]
[1609589092742,1.18043158,29778.0,29775.0,0.00038415]
[1609589092944,1.18084112,29778.0,29775.0,0.00038415]
[1609589093143,1.18084112,29778.0,29777.0,0.00038415]
[1609589093344,1.18084112,29778.0,29775.0,0.00038415]
[1609589093644,1.18084112,29778.0,29777.0,0.00038415]
[1609589093846,0.00040954,29777.0,29776.0,0.00038415]
[1609589094246,1.18084112,29778.0,29777.0,0.00038415]
[1609589094447,0.00040954,29777.0,29776.0,0.00038415]
[1609589094648,0.18084112,29778.0,29774.0,0.13947]
[1609589094848,0.18084112,29778.0,29773.0,0.2818]
[1609589095048,0.00040954,29777.0,29775.0,0.00038416]
[1609589095247,0.00040954,29777.0,29774.0,0.00038416]
[1609589095447,0.00040954,29777.0,29776.0,0.00038416]
[1609589095747,0.18043158,29778.0,29776.0,0.12117]
[1609589095947,0.18043158,29778.0,29776.0,0.12155416]
[1609589096248,0.18043158,29778.0,29777.0,0.00038416]
[1609589097250,5.06053158,29778.0,29777.0,0.00038416]
[1609589098051,5.06053158,29778.0,29777.0,0.18081574]
[1609589099653,5.06053158,29778.0,29777.0,0.18081575]
[1609589104858,4.8801,29778.0,29777.0,0.18081575]
[1609589105859,0.00428009,29786.0,29777.0,0.18081575]
[1609589106060,0.00428009,29786.0,29785.0,0.18043158]
[1609589106659,0.00468958,29786.0,29785.0,0.1808157]
[1609589108062,0.18512116,29786.0,29785.0,0.1808157]
[1609589108761,0.18471167,29786.0,29785.0,0.1808157]
[1609589110666,0.00428009,29786.0,29785.0,0.1808157]
[1609589113068,0.00428009,29786.0,29785.0,1.1808157]
[1609589115671,0.00428009,29786.0,29785.0,0.1808157]
[1609589115872,0.00428009,29786.0,29785.0,1.1808157]
[1609589116874,0.00428009,29786.0,29785.0,0.1808157]
[1609589117774,0.01467118,29786.0,29785.0,0.1808157]
[1609589118774,0.0173,29788.0,29785.0,1.1808157]
[1609589119075,0.0173,29788.0,29786.0,0.00038338]
[1609589120774,0.0173,29788.0,29787.0,4.3017]
[1609589121174,0.0173,29788.0,29787.0,4.30208338]
[1609589122776,0.0173,29788.0,29787.0,5.30208338]
[1609589124984,0.0173,29788.0,29787.0,4.30208338]
[1609589125281,0.0173,29788.0,29787.0,5.30208338]
[1609589126383,0.0173,29788.0,29787.0,1.00038338]
[1609589126584,0.0173,29788.0,29787.0,0.00038338]
[1609589126783,0.0173,29788.0,29787.0,1.00038338]
[1609589130587,0.01525702,29788.0,29787.0,1.00038338]
[1609589130988,0.01525702,29788.0,29787.0,0.00038338]
[1609589137498,0.01525702,29788.0,29787.0,1.00038338]
[1609589137698,0.01525702,29788.0,29787.0,4.91748338]
[1609589140403,0.01525702,29788.0,29787.0,4.95841766]
[1609589155434,0.01321438,29788.0,29787.0,4.95841766]
[1609589156725,0.01321438,29788.0,29787.0,3.95841766]
[1609589156925,0.01321438,29788.0,29787.0,4.95841766]
[1609589162834,0.00321438,29788.0,29787.0,4.95841766]
[1609589164937,4.20722763,29809.0,29787.0,4.95841766]
[1609589165239,5.20722763,29809.0,29787.0,4.95841766]
[1609589165437,0.00040928,29808.0,29788.0,0.04131124]
[1609589165638,0.13722928,29808.0,29788.0,0.04131124]
[1609589165840,1.0,29807.0,29789.0,1.0]
[1609589166139,0.00040928,29806.0,29790.0,0.04131252]
[1609589166339,0.00040928,29806.0,29805.0,0.18043158]
[1609589166741,0.00040928,29806.0,29805.0,0.18081486]
[1609589167642,0.00040928,29807.0,29805.0,0.18081486]
[1609589167942,0.00040928,29806.0,29805.0,0.18081486]
[1609589168245,0.00040928,29807.0,29805.0,0.18081486]
[1609589168447,0.00040926,29806.0,29805.0,0.18081486]
[1609589168744,0.00040926,29806.0,29805.0,0.18043158]
[1609589169144,0.00040926,29807.0,29805.0,0.18081483]
[1609589169344,0.00040926,29806.0,29805.0,0.18081483]
[1609589169544,0.00040926,29806.0,29805.0,0.18043158]
[1609589169744,0.00040926,29807.0,29805.0,0.18081482]
[1609589170143,0.00040926,29806.0,29805.0,0.18081482]
[1609589170349,0.00040926,29806.0,29805.0,0.18043158]
[1609589170547,0.00040926,29807.0,29805.0,0.18081482]
[1609589170849,0.00040926,29806.0,29805.0,0.18081482]
[1609589171149,0.00040926,29806.0,29805.0,0.18043158]
[1609589171349,0.00040926,29807.0,29805.0,0.18081482]
[1609589171649,0.00040926,29807.0,29806.0,0.00038324]
[1609589174555,0.00040926,29807.0,29806.0,0.00038323]
[1609589175357,0.00040926,29807.0,29806.0,0.00038322]
[1609589178062,0.76180926,29807.0,29806.0,0.00038322]
[1609589178263,1.76180926,29807.0,29806.0,0.00038322]
[1609589178464,1.94224084,29807.0,29806.0,0.00038322]
[1609589178964,1.94224084,29807.0,29793.0,4.3195]
[1609589179365,0.0004093,29806.0,29794.0,0.00038389]
[1609589179964,0.0157093,29806.0,29794.0,0.00038389]
[1609589180366,0.0004093,29805.0,29794.0,0.00038389]
[1609589180566,0.0004093,29805.0,29801.0,0.18043158]
[1609589180767,1.0004093,29805.0,29801.0,0.18043158]
[1609589180967,1.0004093,29805.0,29802.0,0.00038389]
[1609589181167,0.0004093,29804.0,29802.0,0.00038389]
[1609589182468,0.18043158,29803.0,29802.0,0.00038389]
[1609589182669,1.18043158,29803.0,29802.0,0.00038389]
[1609589182869,1.18084088,29803.0,29802.0,0.00038389]
[1609589185469,1.18084088,29803.0,29790.0,0.12353]
[1609589185470,5.94694088,29803.0,29798.0,0.00038391]
[1609589185670,5.94694088,29803.0,29802.0,0.00038391]
[1609589185971,0.00040933,29802.0,29799.0,0.00038391]
[1609589186171,5.94694091,29803.0,29790.0,0.12353]
[1609589186473,0.00040933,29801.0,29800.0,0.00038392]
[1609589186671,0.00040933,29801.0,29796.0,0.18043158]
[1609589186871,0.00040933,29802.0,29796.0,0.18043158]
[1609589187071,0.00040933,29801.0,29800.0,0.00038392]
[1609589187271,0.00040933,29802.0,29797.0,0.00038392]
[1609589187472,0.00040933,29801.0,29800.0,0.00038392]
[1609589187772,0.00040933,29801.0,29798.0,0.00038392]
[1609589188072,0.00040933,29802.0,29797.0,0.00038392]
[1609589188272,0.00040933,29800.0,29799.0,0.00038392]
[1609589188473,0.18084091,29800.0,29799.0,0.00038392]
[1609589188673,1.18043158,29800.0,29798.0,0.00038392]
[1609589188874,1.18084091,29800.0,29799.0,0.00038392]
[1609589189075,1.18043158,29800.0,29799.0,0.00038392]
[1609589189373,1.18084091,29800.0,29797.0,0.00038392]
[1609589189575,1.18084091,29800.0,29799.0,0.00038392]
[1609589189874,1.18043158,29800.0,29798.0,0.00038392]
[1609589190175,1.18084091,29800.0,29799.0,0.00038392]
[1609589190376,0.18043158,29800.0,29799.0,0.00038392]
[1609589190577,0.61155529,29805.0,29799.0,4.9438155]
[1609589190778,0.00040931,29800.0,29799.0,4.94343158]
[1609589190976,0.61151665,29803.0,29799.0,5.94381545]
[1609589191578,0.61151665,29803.0,29800.0,0.00038385]
[1609589192477,0.61151665,29803.0,29802.0,0.18043158]
[1609589192877,0.61151665,29803.0,29802.0,1.18043158]
[1609589193077,0.61151665,29803.0,29802.0,1.18081541]
[1609589196082,0.61151665,29803.0,29802.0,1.29835541]
[1609589198484,0.61151665,29803.0,29802.0,6.51495541]
[1609589199386,0.61151665,29803.0,29802.0,5.51495541]
[1609589200386,0.0153,29806.0,29802.0,5.51495541]
[1609589200586,0.0153,29806.0,29805.0,0.18043158]
[1609589200987,0.0153,29806.0,29805.0,0.18081537]
[1609589201387,0.0153,29806.0,29805.0,6.28701537]
[1609589210000,0.0153,29806.0,29805.0,6.38861537]
[1609589210202,0.16491,29824.0,29805.0,6.38861537]
[1609589210403,1.0,29825.0,29805.0,6.38861537]
[1609589210600,0.60886262,29826.0,29824.0,0.18043158]
[1609589210901,1.0,29827.0,29825.0,0.699]
[1609589211602,0.60875228,29832.0,29825.0,0.699]
[1609589212001,0.60875228,29832.0,29824.0,0.18043158]
[1609589212202,1.73207228,29832.0,29824.0,0.18043158]
[1609589212403,0.00040906,29831.0,29824.0,0.18043158]
[1609589212604,0.00040906,29831.0,29830.0,0.18043158]
[1609589214206,0.00040906,29831.0,29812.0,1.0]
[1609589214405,0.00040906,29831.0,29811.0,0.15082]
[1609589214606,0.00040906,29831.0,29825.0,0.18043158]
[1609589215809,0.60852498,29831.0,29825.0,0.18043158]
[1609589216007,1.0,29830.0,29825.0,0.18043158]
[1609589216312,0.00040909,29829.0,29825.0,0.18043158]
[1609589216518,0.00040909,29829.0,29811.0,0.15082]
[1609589216519,1.0,29826.0,29811.0,0.15082]
[1609589216723,1.0,29825.0,29818.0,0.18043158]
[1609589217110,0.00040911,29824.0,29818.0,0.18043158]
[1609589217313,0.00040911,29824.0,29812.0,4.9394]
[1609589218510,1.0,29813.0,29812.0,4.9394]
[1609589218710,1.18043158,29813.0,29812.0,5.11983158]
[1609589219112,2.18043158,29813.0,29812.0,0.18081532]
[1609589219511,2.18043158,29813.0,29812.0,0.18043158]
[1609589220010,2.18084074,29813.0,29812.0,0.18081533]
[1609589220212,2.18084074,29813.0,29812.0,0.00038375]
[1609589220612,1.18084074,29813.0,29806.0,0.00038375]
[1609589220813,1.18084074,29813.0,29812.0,0.00038375]
[1609589221212,0.00040916,29812.0,29811.0,0.14718375]
[1609589221411,0.18084074,29813.0,29812.0,0.00038375]
[1609589221612,1.18043158,29813.0,29811.0,0.14718375]
[1609589221915,1.18084074,29813.0,29812.0,0.00038375]
[1609589222314,1.18043158,29813.0,29812.0,0.00038375]
[1609589222513,2.18084074,29813.0,29812.0,0.00038375]
[1609589223016,1.18084074,29813.0,29812.0,0.00038375]
[1609589224516,0.18084074,29813.0,29812.0,0.00038375]
[1609589224716,0.18043158,29813.0,29812.0,0.00038375]
[1609589227823,0.17838972,29813.0,29812.0,0.00038375]
[1609589230226,1.0,29821.0,29812.0,0.00038375]
[1609589230628,0.2957,29823.0,29812.0,0.00038375]
[1609589230827,0.18043158,29818.0,29812.0,0.00038375]
[1609589232829,0.18043158,29818.0,29817.0,0.18043158]
[1609589233129,0.18043158,29818.0,29817.0,0.18081528]
[1609589237133,0.2957,29823.0,29817.0,0.18081528]
[1609589237335,0.2957,29823.0,29820.0,4.6068]
[1609589237634,0.00040911,29822.0,29820.0,4.6068]
[1609589237836,0.00040911,29822.0,29821.0,0.0003837]
[1609589238837,0.00040911,29822.0,29821.0,0.18081528]
[1609589240238,0.00040911,29822.0,29821.0,0.18043158]
[1609589241040,0.00040911,29822.0,29821.0,0.18081616]
[1609589251455,0.00040911,29822.0,29821.0,1.18081616]
[1609589251855,0.13285,29826.0,29821.0,1.18081616]
[1609589251856,0.00040907,29825.0,29821.0,1.18081616]
[1609589252055,0.00040907,29822.0,29821.0,1.18081616]
[1609589252257,0.13285,29826.0,29821.0,1.18081616]
[1609589252456,0.13285,29826.0,29822.0,0.00038454]
[1609589252656,0.61062358,29831.0,29821.0,0.18081616]
[1609589252857,0.00040906,29830.0,29823.0,0.00038458]
[1609589253157,0.00040906,29830.0,29822.0,0.00038458]
[1609589253458,0.00040906,29830.0,29824.0,0.00038458]
[1609589253662,0.00040906,29830.0,29823.0,0.00038458]
[1609589254059,0.00040906,29830.0,29820.0,0.00038458]
[1609589254259,0.00040906,29830.0,29824.0,0.00038458]
[1609589254460,0.00040906,29830.0,29821.0,0.00038458]
[1609589254861,0.00040906,29830.0,29829.0,0.18043158]
[1609589255062,0.00040906,29831.0,29829.0,0.18043158]
[1609589255262,0.73384755,29832.0,29829.0,0.18043158]
[1609589255663,0.73384755,29832.0,29830.0,0.00038456]
[1609589255863,0.00040905,29831.0,29830.0,0.00038456]
[1609589257564,0.00040905,29831.0,29830.0,4.01438456]
[1609589257765,0.00040904,29831.0,29830.0,4.01438456]
[1609589258768,0.00040904,29831.0,29830.0,5.01438456]
[1609589260371,0.00040898,29831.0,29830.0,0.00038456]
[1609589265181,0.12332,29832.0,29830.0,0.00038456]
[1609589265381,0.18043158,29833.0,29830.0,0.00038456]
[1609589265582,0.00040901,29831.0,29830.0,0.00038456]
[1609589265880,0.1647,29831.0,29830.0,0.00038456]
[1609589266081,0.16510901,29831.0,29830.0,0.00038456]
[1609589269283,0.1647,29831.0,29830.0,0.00038456]
[1609589269585,0.16510901,29831.0,29830.0,0.00038456]
[1609589272987,1.16510901,29831.0,29830.0,0.00038456]
[1609589273587,1.16510901,29831.0,29827.0,0.00038453]
[1609589273788,1.16510901,29831.0,29826.0,0.18043158]
[1609589274189,0.00040901,29830.0,29828.0,0.00038453]
[1609589274389,0.00040901,29830.0,29827.0,0.00038453]
[1609589274590,0.00040901,29830.0,29814.0,5.1708]
[1609589274893,0.00040901,29830.0,29815.0,0.00038454]
[1609589275092,0.00040901,29830.0,29822.0,0.18043158]
[1609589275392,0.00040901,29830.0,29823.0,0.00038454]
[1609589276492,1.0,29825.0,29823.0,0.00038454]
[1609589276993,0.18043158,29824.0,29823.0,0.00038454]
[1609589278093,0.18043158,29824.0,29815.0,0.00038456]
[1609589278294,0.18043158,29824.0,29823.0,0.00038456]
[1609589278493,0.18043158,29824.0,29816.0,0.00038456]
[1609589278894,0.18084063,29824.0,29823.0,0.00038456]
[1609589279094,0.18043158,29824.0,29820.0,0.18043158]
[1609589279296,0.18084063,29824.0,29823.0,0.00038456]
[1609589279594,0.18043158,29824.0,29821.0,0.00038456]
[1609589279998,0.00040905,29823.0,29821.0,0.00038456]
[1609589280394,0.18043158,29824.0,29821.0,0.00038456]
[1609589280994,0.18043158,29824.0,29823.0,0.18043158]
[1609589281394,0.18043158,29824.0,29823.0,0.1808161]
[1609589283597,0.18084061,29824.0,29823.0,0.1808161]
[1609589284198,0.18043158,29824.0,29823.0,0.1808161]
[1609589284699,0.18084061,29824.0,29823.0,0.1808161]
[1609589285901,0.18043158,29824.0,29823.0,0.1808161]
[1609589286200,0.18084061,29824.0,29823.0,0.1808161]
[1609589286806,0.18084061,29824.0,29823.0,0.00038452]
[1609589287202,0.18084061,29824.0,29820.0,0.18043158]